Cogmind - Beta 16 @@@ ROGUE MODE // 2025.10.30 @ 08:40:36 Player: shapeshifter Result: Destroyed by as-19802 with Assembled Rifle Performance ------------- Evolutions (0) 0 Regions Visited (4) 800 Robots Destroyed (34) 170 Value Destroyed (780) 780 Prototype IDs (25) 500 Alien Tech Used (0) 0 Bonus (385) 385 TOTAL SCORE: 2635 Bonus ------- Follower Combat Kills 85 Aligned with FarCom 300 Cogmind --------- Core Integrity 0/250 Matter 300/300 Energy 100/100 System Corruption 0% Temperature Cool (0) Movement Treading (160) Location -9/Mines Parts ------- > --- POWER (1) -------- (None) > --- PROPULSION (2) --- Light Treads Light Treads > --- UTILITY (2) ------ Large Storage Unit Improved Light Armor Plating > --- WEAPON (2) ------- Particle Gun > --- INVENTORY (15) --- Advanced Treads Potential Leg Potential Leg Improved Heat Sink Huge Storage Unit Improved Terrain Scanner Recoil Stabilizer Recoil Stabilizer Hacking Suite System Shield Skeleton Box Firepult Concussive RPG (1) Peak State ------------ > --- POWER ------------ Light Ion Engine > --- PROPULSION ------- Light Treads Light Treads > --- UTILITY ---------- Large Storage Unit Improved Light Armor Plating > --- WEAPON ----------- Small Laser Particle Gun > --- INVENTORY -------- Light Treads Advanced Treads Potential Leg Potential Leg Improved Heat Sink Huge Storage Unit Improved Terrain Scanner Recoil Stabilizer Recoil Stabilizer Hacking Suite System Shield Skeleton Box Firepult Concussive RPG [Rating: 17] Favorites ----------- Power Ion Engine Engine Ion Engine Propulsion Light Treads Treads Light Treads Utility Large Storage Unit Device Seismic Detector Storage Large Storage Unit Protection Improved Light Armor Plating Weapon Assault Rifle Energy Gun Small Laser Ballistic Gun Assault Rifle Build | -11 -10 -10 -10 -9 ------- Run | Yrd Mat Min Exi Min Slots Evolved . | . . . . . Power . | . . . . . Propulsion . | . . . . . Utility . | . . . . . Weapon . | . . . . . Parts Attached 22 | 8 5 3 1 5 Power 3 | 2 . . . 1 Engine 3 | 2 . . . 1 Core . | . . . . . Reactor . | . . . . . Propulsion 7 | 2 2 1 1 1 Treads 7 | 2 2 1 1 1 Leg . | . . . . . Wheel . | . . . . . Hover . | . . . . . Flight . | . . . . . Utility 5 | 2 1 1 . 1 Device 2 | 1 . . . 1 Storage 2 | 1 1 . . . Processor . | . . . . . Hackware . | . . . . . Protection 1 | . . 1 . . Artifact . | . . . . . Weapon 7 | 2 2 1 . 2 Energy Gun 4 | 1 2 1 . . Energy Cannon . | . . . . . Ballistic Gun 3 | 1 . . . 2 Ballistic Cannon . | . . . . . Launcher . | . . . . . Special Weapon . | . . . . . Impact Weapon . | . . . . . Slashing Weapon . | . . . . . Piercing Weapon . | . . . . . Special Melee Weapon . | . . . . . Unidentified Prototypes . | . . . . . Parts Lost 8 | . 2 3 . 3 Power 2 | . . 1 . 1 Propulsion 1 | . . . . 1 Utility 1 | . . 1 . . Weapon 4 | . 2 1 . 1 Highest Loss Streak 3 | . 1 2 . 3 To Critical Strikes . | . . . . . Average Backups 10 | 2 7 11 13 13 Power . | . 1 . . . Propulsion 2 | . 2 2 2 3 Utility 4 | . 1 5 7 7 Weapon 1 | . 1 2 2 1 Tool/Special . | . . . . . Unused Backups 14 | . . . 3 11 Power . | . . . . . Propulsion 2 | . . . . 2 Utility 6 | . . . . 6 Weapon 4 | . . . 3 1 Tool/Special 2 | . . . . 2 Average Slot Usage (%) 97 | . 100 94 100 92 Engine 12 | . 14 9 14 10 Treads 27 | . 28 28 28 27 Device 8 | . 14 9 . 1 Storage 14 | . 14 14 14 14 Protection 5 | . . 3 14 12 Energy Gun 17 | . 14 17 28 15 Ballistic Gun 10 | . 14 9 . 9 Peak Build Rating 17 | 7 8 13 17 17 Average Rating 10 | 5 7 9 13 16 On Entrance 8 | . 7 7 13 17 Avg Prop Armor Cover (%) . | . . . . . Naked Turns . | . . . . . Heaviest Build 31 | 15 29 30 30 31 Greatest Support 40 | 40 40 40 40 40 Greatest Overweight (x) 1 | . . . . 1 Average Overweight (x) . | . . . . . Largest Inventory Capacity 15 | 8 15 15 15 15 Average Capacity 13 | 7 11 15 15 15 Most Carried 15 | 5 10 15 15 15 Average Carried 10 | 2 7 11 13 14 Final Capacity 15 | 8 15 15 15 15 Final Carried 15 | 3 7 14 15 14 Class Distribution -------------------- 88% | Mutant 11% | Scavenger-Mutant Dominant Class ---------------- Mutant | -10/Materials Mutant | -10/Mines Mutant | -10/Exiles Scavenger-Mutant | -9/Mines Resources | -11 -10 -10 -10 -9 ----------- Run | Yrd Mat Min Exi Min Matter Collected 713 | 235 262 107 . 109 Remotely . | . . . . . Salvage Created 1022 | 69 597 167 . 189 Parts 59 | 8 34 5 . 12 Haulers Intercepted 2 | . 2 . . . Recyclers Shooed . | . . . . . Parts Field Recycled . | . . . . . Retrieved Matter . | . . . . . Parts Self-Destructed . | . . . . . Prevented . | . . . . . Parts Restored . | . . . . . Kills | -11 -10 -10 -10 -9 ------- Run | Yrd Mat Min Exi Min Combat Hostiles Destroyed 26 | . 13 4 . 9 Guns 26 | . 13 4 . 9 Classes Destroyed 5 | 1 4 . . . Tunneler 3 | 3 . . . . Hauler 2 | . 2 . . . Watcher 3 | . 3 . . . Swarmer 9 | . 3 . . 6 Grunt 17 | . 10 4 . 3 Best Kill Streak 3 | 1 3 2 . 3 Combat Bots Only 3 | . 3 2 . 3 Max Kills in Single Turn 1 | 1 1 1 . 1 Gunslinging . | . . . . . Exploded . | . . . . . Melee . | . . . . . Uniques/NPCs Destroyed . | . . . . . Combat | -11 -10 -10 -10 -9 -------- Run | Yrd Mat Min Exi Min Hostile Shots Fired 180 | . 76 44 . 60 Missed 55 | . 22 19 . 14 Hits 125 | . 54 25 . 46 Projectile 125 | . 54 25 . 46 Critical Strikes 4 | . . . . 4 Damage Taken 1446 | . 582 328 . 536 Core 262 | . 83 67 . 112 Absorbed by Shields . | . . . . . Core Remaining (%) 100 | 100 . . . . Volleys Fired 114 | 12 52 19 . 31 Largest 2 | 2 2 2 . 2 Hottest 105 | 70 70 60 . 105 Shots Fired 214 | 24 101 33 . 56 Gun 214 | 24 101 33 . 56 Cannon . | . . . . . Launcher . | . . . . . Special . | . . . . . Kinetic 96 | 12 52 14 . 18 Thermal 118 | 12 49 19 . 38 Explosive . | . . . . . Electromagnetic . | . . . . . Robot Hit Streak 22 | 4 22 5 . 8 Robot Miss Streak 3 | 2 3 3 . 2 Penetration Max . | . . . . . Secondary Targets 1 | . 1 . . . Max Gunslinging Chain 1 | . 1 . . . Shots Hit Robots 139 | 15 73 19 . 32 Core Hits 53 | 3 30 8 . 12 Critical Kills . | . . . . . Critical Parts Destroyed . | . . . . . Critical Strikes 4 | . 4 . . . Burn 4 | . 4 . . . Melee Attacks . | . . . . . Impact . | . . . . . Slashing . | . . . . . Piercing . | . . . . . Sneak Attacks . | . . . . . Combat Hostiles . | . . . . . Follow-up Attacks . | . . . . . Damage Inflicted 1744 | 201 902 211 . 430 Guns 1744 | 201 902 211 . 430 Cannons . | . . . . . Explosions . | . . . . . Melee . | . . . . . Ramming . | . . . . . Kinetic 785 | 102 458 93 . 132 Thermal 959 | 99 444 118 . 298 Explosive . | . . . . . Electromagnetic . | . . . . . Impact . | . . . . . Slashing . | . . . . . Piercing . | . . . . . Highest Corruption . | . . . . . Average Corruption . | . . . . . Corruption Purged . | . . . . . Corruption Blocked . | . . . . . Overload Shots . | . . . . . Overflow Damage . | . . . . . Projectiles . | . . . . . Explosions . | . . . . . Melee . | . . . . . Knockbacks . | . . . . . Impact . | . . . . . Kinetic . | . . . . . Secondary . | . . . . . Self-Inflicted Damage . | . . . . . Shots . | . . . . . Rammed . | . . . . . Targets Rammed . | . . . . . Kicked . | . . . . . Crushed . | . . . . . Highest Temperature 374 | 54 141 47 . 374 Average Temperature 64 | 21 39 21 . 124 Received Heat Transfer 699 | . 288 177 . 234 Effects 1 | . . . . 1 Shutdowns 1 | . . . . 1 Siege Activations . | . . . . . Martial Activations . | . . . . . Shielding Activations . | . . . . . Robots Disrupted . | . . . . . Combat Hostiles . | . . . . . Robots Corrupted . | . . . . . Combat Hostiles . | . . . . . Parts Fried . | . . . . . Impact Corruptions . | . . . . . Robots Melted . | . . . . . Combat Hostiles . | . . . . . Parts Melted 5 | . 2 2 . 1 Heat Transferred 2785 | 296 1497 275 . 717 Parts Sabotaged . | . . . . . Parts Stolen . | . . . . . Parts Stripped . | . . . . . Power Chain Reactions . | . . . . . Alert | -11 -10 -10 -10 -9 ------- Run | Yrd Mat Min Exi Min Maximum Alert Level 1 | . 1 . . . Low Security (%) 99 | 100 99 100 . 100 Level 1 . | . . . . . Level 2 . | . . . . . Level 3 . | . . . . . Level 4 . | . . . . . Level 5 . | . . . . . High Security . | . . . . . Max Security . | . . . . . Peak Influence 203 | 5 203 53 . 80 Initial . | . . . . . Average 39 | . 70 6 . 21 Influence Increases 883 | 15 463 165 . 240 Destroy 0b10 Robot/C 580 | . 260 140 . 180 Destroy 0b10 Robot/NC 40 | 15 25 . . . Destroy Leader 110 | . 60 20 . 30 Allied During Kill 5 | . . 5 . . Successful Hack 28 | . 28 . . . Select Force Hacks 30 | . 30 . . . Lose Combat Pursuer 90 | . 60 . . 30 Influence Decreases 883 | 15 463 165 . 240 Time Decay 793 | 15 443 125 . 210 Lost Part 70 | . 20 20 . 30 Lost Ally 20 | . . 20 . . Squads Dispatched 6 | . 4 2 . . Investigation 5 | . 4 1 . . Extermination . | . . . . . Reinforcement . | . . . . . Assault 1 | . . 1 . . Garrison . | . . . . . Intercept . | . . . . . Searches Triggered . | . . . . . Construction Impeded . | . . . . . Haulers Reinforced . | . . . . . Active Scanning Responses . | . . . . . Cargo Convoy Interrupts . | . . . . . Stealth | -11 -10 -10 -10 -9 --------- Run | Yrd Mat Min Exi Min Distress Signals 1 | . 1 . . . Communications Jammed . | . . . . . Distress Signals . | . . . . . Times Spotted 42 | . 19 10 . 13 Peak Tracking Total 4 | . 4 4 . 4 Tactical Retreats 3 | . 2 . . 1 Traps | -11 -10 -10 -10 -9 ------- Run | Yrd Mat Min Exi Min Traps Triggered 3 | . 3 . . . Indirectly . | . . . . . Trap Hack Attempts . | . . . . . Triggered . | . . . . . Disarmed . | . . . . . Reprogrammed . | . . . . . Reused . | . . . . . Traps Extracted . | . . . . . Installed . | . . . . . Triggered . | . . . . . Machines | -11 -10 -10 -10 -9 ---------- Run | Yrd Mat Min Exi Min Machines Disabled . | . . . . . Max in Single Turn . | . . . . . Machines Repaired . | . . . . . Machines Dismantled . | . . . . . Machines Sabotaged . | . . . . . Overloaded Fab Kills . | . . . . . Hacking | -11 -10 -10 -10 -9 --------- Run | Yrd Mat Min Exi Min Machines Accessed 12 | . 9 1 2 . Terminals 7 | . 7 . . . Fabricators . | . . . . . Repair Stations . | . . . . . Recycling Units 2 | . 2 . . . Scanalyzers . | . . . . . Garrison Access . | . . . . . Total Hacks 33 | . 30 1 2 . Successful 18 | . 15 1 2 . Failed 15 | . 15 . . . Catastrophic 1 | . 1 . . . Database Lockouts . | . . . . . Manual 27 | . 26 . 1 . Terminals 25 | . 25 . . . Fabricators . | . . . . . Repair Stations . | . . . . . Recycling Units 5 | . 5 . . . Scanalyzers . | . . . . . Garrison Access . | . . . . . Terminal Hacks 9 | . 6 1 2 . Record 1 | . . . 1 . Robot Analysis 1 | . 1 . . . Prototype ID Bank 1 | . 1 . . . Open Door 1 | . . 1 . . Alert Level 1 | . 1 . . . Zone Layout 3 | . 3 . . . Proto ID Catalog 1 | . . . 1 . Fabricator Hacks . | . . . . . Repair Station Hacks . | . . . . . Recycling Unit Hacks 2 | . 2 . . . Retrieve Components 2 | . 2 . . . Scanalyzer . | . . . . . Garrison Access Hacks . | . . . . . Unauthorized Hacks 7 | . 7 . . . Terminals 6 | . 6 . . . Botnet 1 | . 1 . . . Skim 5 | . 5 . . . Fabricators . | . . . . . Repair Stations . | . . . . . Recycling Units 1 | . 1 . . . Tunnel 1 | . 1 . . . Scanalyzers . | . . . . . Garrison Access . | . . . . . Data Cores Recovered . | . . . . . Used . | . . . . . Hacking Detections 9 | . 9 . . . Full Trace Events . | . . . . . Feedback Events . | . . . . . Feedback Blocked . | . . . . . Robot Schematics Acquired . | . . . . . Robots Built . | . . . . . Authchips . | . . . . . Time . | . . . . . Total Robot Build Rating . | . . . . . Part Schematics Acquired . | . . . . . Parts Built . | . . . . . Authchips . | . . . . . Time . | . . . . . Total Part Build Rating . | . . . . . Part Studies Acquired . | . . . . . Parts Repaired . | . . . . . Time . | . . . . . Parts Recycled . | . . . . . Recycled Matter . | . . . . . Retrieved Matter . | . . . . . Retrieved Components 8 | . 8 . . . Parts Scanalyzed . | . . . . . Part Schematics Acquired . | . . . . . Parts Damaged . | . . . . . Bothacking | -11 -10 -10 -10 -9 ------------ Run | Yrd Mat Min Exi Min Used RIF Installer . | . . . . . Robots Hacked . | . . . . . Non-combat . | . . . . . Combat . | . . . . . Robot Hacks Applied . | . . . . . Relay Couplers Released . | . . . . . Fabnet Peak Effective % . | . . . . . Robots Rewired . | . . . . . Allies Hacked . | . . . . . Hacks Repelled . | . . . . . Allies | -11 -10 -10 -10 -9 -------- Run | Yrd Mat Min Exi Min Total Allies 2 | . . 2 . . Largest Group 1 | . . 1 . . Highest-Rated Group 31 | . . 31 . . Highest-Rated Ally 31 | . . 31 . . Total Orders . | . . . . . Ally Attacks 14 | . . 14 . . Total Damage 232 | . . 232 . . Kills 3 | . . 3 . . Allies Corrupted . | . . . . . Allies Melted . | . . . . . Intel | -11 -10 -10 -10 -9 ------- Run | Yrd Mat Min Exi Min Active Infowar (turns) 2140 | 12 1498 630 . . Seismic 2140 | 12 1498 630 . . Robot Analysis Total 1 | . 1 . . . Derelict Logs Recovered 3 | . . 1 . 2 Drone Launches . | . . . . . Drone Recoveries . | . . . . . Exploration | -11 -10 -10 -10 -9 ------------- Run | Yrd Mat Min Exi Min Turns Passed 3676 | 136 1498 893 511 638 Spaces Moved 1847 | 67 639 501 312 328 Core 21 | 21 . . . . Treads 1826 | 46 639 501 312 328 Legs . | . . . . . Wheels . | . . . . . Hover . | . . . . . Flight . | . . . . . Fastest Speed 50 | 50 160 160 160 160 Average Speed 158 | 125 160 160 160 160 Slowest Speed 240 | 160 160 160 160 240 Overloaded Moves . | . . . . . Propulsion Burnouts . | . . . . . Robots Hopped . | . . . . . Potential Cave-ins . | . . . . . Cave-ins Triggered . | . . . . . Exploration Rate (%) 63 | 5 77 85 68 80 Regions Visited 4 Branch Regions 3 Pre-discovered Areas 5 | . 3 1 1 . Known Exits Taken 1 | . . . 1 . Unknown Exits Taken 3 | 1 1 1 . . Scrap Searched 3 | . . 1 . 2 Spaces Dug . | . . . . . Terrain Destroyed . | . . . . . Melee . | . . . . . Projectile . | . . . . . AOE . | . . . . . Terrain Rammed . | . . . . . Walls Destroyed . | . . . . . Machines Disabled . | . . . . . Actions | -11 -10 -10 -10 -9 --------- Run | Yrd Mat Min Exi Min Total 2374 | 94 1014 558 325 383 Wait 352 | . 307 25 5 15 Move 1843 | 66 638 500 311 328 Hop . | . . . . . Pick Up 30 | 8 9 9 4 . Fast Attach 5 | 2 . 1 . 2 Attach 10 | 5 2 2 . 1 Detach . | . . . . . Swap 10 | 1 3 2 1 3 Drop 10 | . 3 . 4 3 Fire 114 | 12 52 19 . 31 Melee . | . . . . . Ram . | . . . . . Kick . | . . . . . Crush . | . . . . . Escape Stasis . | . . . . . Rewire . | . . . . . Trap . | . . . . . Miscellaneous . | . . . . . Route ------- -11/Scrapyard -10/Materials (discovered 6 exits: *Mat x3 / *Min x2 / *Sub) -10/Mines (discovered 3 exits: *Mat / *Exi / Sub) -10/Exiles (discovered 2 exits: *Min x2) -9/Mines History --------- Turn | Location | Event 2 | -11/Scrapyard | Met Revision 17 5 | -11/Scrapyard | Discovered new exit (range 16) 137 | -11/Scrapyard | Entered Materials 262 | -10/Materials | Discovered new exit (range 18) 317 | -10/Materials | Build established: Mutant 480 | -10/Materials | Discovered new exit (range 16) 645 | -10/Materials | Discovered new exit (range 11) 948 | -10/Materials | Discovered new exit (range 7) 1077 | -10/Materials | Discovered new exit (range 14) 1298 | -10/Materials | Learned location of Storage (-8) 1360 | -10/Materials | Learned Storage emergency access door positions 1451 | -10/Materials | Learned location of 2 exits from Mines 1500 | -10/Materials | Learned Storage machine intel 1509 | -10/Materials | Learned Storage emergency access door positions 1526 | -10/Materials | Learned location of Subcaves (-10) 1555 | -10/Materials | Identified exit to Materials 1555 | -10/Materials | Learned location of 2 exits from Materials 1635 | -10/Materials | Entered Mines 1636 | -10/Mines | Identified exit to Subcaves 1657 | -10/Mines | Core integrity fell below 50% 1742 | -10/Mines | Received a Mining Laser from a helpful Derelict 1815 | -10/Mines | YI-UF0 nonchalantly dropped a Grenade Launcher on the ground 1940 | -10/Mines | Met a Derelict shopkeep closing up shop 2086 | -10/Mines | Met a Derelict testing a Signal Generator 2488 | -10/Mines | Learned location of Mines (-9) 2522 | -10/Mines | Deemed a non-threat by the Exiles lab entrance 2522 | -10/Mines | Discovered new exit (range 5) 2528 | -10/Mines | Entered Exiles 2529 | -10/Exiles | Identified exit to Mines 2567 | -10/Exiles | Met 8R-AWN 2596 | -10/Exiles | Met EX-HEX 2666 | -10/Exiles | Met EX-DEC 2692 | -10/Exiles | Learned location of Zion (-7) 2798 | -10/Exiles | Met EX-BIN 2820 | -10/Exiles | Aligned with FarCom system 2822 | -10/Exiles | Given EX-Vault access code 2858 | -10/Exiles | Opened EX-Vault 2873 | -10/Exiles | Found Firepult 2878 | -10/Exiles | Found Skeleton Box 2881 | -10/Exiles | Found Potential Leg 2884 | -10/Exiles | Found Potential Leg 2920 | -10/Exiles | Warned to stay clear of 0b10 Research branches 2929 | -10/Exiles | Exiles lab attacked by MAIN.C 3039 | -10/Exiles | Stole three prototypes: Potential Leg, Skeleton Box, Firepult 3039 | -10/Exiles | Entered Mines 3301 | -9/Mines | Learned location of 1 exit from Materials 3389 | -9/Mines | Build established: Scavenger-Mutant 3430 | -9/Mines | Received a Rocket Launcher from a helpful Derelict 3522 | -9/Mines | Core integrity fell below 20% 3566 | -9/Mines | Lost 3 parts (1p1n1w) 3677 | -9/Mines | Excavation squad dispatched 3677 | -9/Mines | A large section of the Mines collapsed 3677 | -9/Mines | Destroyed by as-19802 with Assembled Rifle Last Messages --------------- laser wimps, I say!" 03430_ 7V-N1R(g): "Would you like a rocket launcher? I know I would if I were you, so I'm going to lend you mine." 03430_ 7V-N1R(g) slips back into the shadows. 03501_ G-34 Mercenary destroyed. 03502_ Lgt. Treads destroyed. 03513_ Critical hit (Burn: +37). 03514_ Heat Sink melted. 03514_ G-34 Mercenary destroyed. 03515_ Critical hit (Burn: +37). 03529_ Lgt. Ion Engine destroyed. 03535_ Assault Rifle destroyed. 03543_ G-47 Trooper destroyed. 03547_ Acquired 41 matter. 03579_ Searching scrap... 03579_ Found Mni. Grenade Launcher. 03579_ Found 52 Matter. 03582_ Acquired 10 matter. 03677_ ALERT: Suspicious cave-in, suspected derelict activity in mines. Dispatching escorted excavation squad. Map ----- +----------------------------------------------------+ | ??????????## ## #??????????????????? | | ??????????# ##??????????????????? | | ??????????# ##???????????????????? | | ??????????## ##???##???????????????? | | ???????????##### ##?? ##??????????????? | | ???????????????## ## #####??????????? | | ????????????###?### #??????????? | | ????????????# ##?## #?????????? | | ????????????# ##?## ?????????? | | ???????????## ##?### ###### ?????????? | | ??????????## ##??# #?????# ??????????? | | ??????????# ##?# #?????? ####??????????? | | ###???????# #?# #??????? ##?????????????? | | ###?????# ### #????????#??????????????? | | ##????# ## #???????????????????????? | | ##???# # ###?????????????????????? | | ## ##??# #?????????????????????? | | ### ##??# #?????????????????????? | | ??### ##?## ### #?????????????????????? | | ????## #### ##?# #?????????????????????? | | ?????# ## ##??# #?????????????????????? | | ?????# #???# #???????????????s?????? | | ?????## #???# #?????????????????????? | | ??????#### #???## #??#????????????s?????? | | ?????????##### #?###a## ##?????????????????? | | ?????????????## ##?# #@# #???????????s?????? | | ??????????????# #?# ### #?????????????????? | | ??????????????### #?# ##?????????????????? | | ?????#####??????# #?## ##??????????????????? | | ????## ##?????# #??## ##?????? ??????????? | | ##### ##????# #???## ##?????? ???????????? | | #????# #????####??????? ???????????? | | ###### ########???????? ####????????? | | #??????## ? ????????? | | #?????## ?# #????????? | | ########## #?????# ??# #????????? | | ## ##????????# #?????# #??# #????????? | | ### ##?????????# #?????# ##?# #????????? | | ######??????????# #????## ### #??######? | | ##?????????????# #????# ## ####=* #? | | ##????????????# ###### =%%% = #? | | #????????????# [##%[[ #? | | ## #????????????# ## #? | | ###### #????????????######### ### #? | | ?????# ##????????????????????## #####?# #? | | ?????# ##??????????????????????## ##?????# #? | | ?????###????????????????????????####??????# #? | | ??????????????????????????????????????????# #? | | ??????????????????????????????????????????# #? | | ??????????????????????????????????????????# #? | +----------------------------------------------------+ Best States ------------- Heat Dissipation 39 Energy Generation 10 Energy Capacity 250 Matter Stores 300 Matter Capacity 300 Sight Range 16 Terrain Scan Density 10 Armor Coverage 150 Evasion (%) 50 Recoil Reduction 2 Item Schematics ----------------- None Robot Schematics ------------------ None Fabricated ------------ Nothing Repaired ---------- Nothing Studied --------- None Alien Tech Used ----------------- None Achievements -------------- You Again Challenges ------------ None Game ------ Seed FlakCompanionFirepult Manual? 0 Play Time 00:16:33 Cumulative 447.8 hours Start 2025.10.30 @ 08:16:04 End 2025.10.30 @ 08:40:36 Sessions 1 Manual Loads 0 Difficulty Rogue Special Mode None Game No. 571 Rogue 571 Adventurer 0 Explorer 0 Win Type - Total 14 Types 6/0/2/2/1/0/2/1/0/0 Lore% 90 Gallery% 84 Achievement% 61 Wizard Run 0 Options --------- Layout 0 ASCII 0 Keyboard 0 Movement Mouse Keybinds 0 Fullscreen 1 Font 24/Terminus Map View 76x50 Zoom Use 0% Tactical HUD 1 Map Filters NONE Filters NONE Steam 1 RUN: 6ee34975-4aa6-40e6-8005-e492ee52cfd7